Cogmind - Beta 9.1 @@@ ROGUE MODE // 2019.10.30 @ 19:43:55 // Halloween2019/Abominations Player: tourn Result: Destroyed by Lesser Abomination with EM Pulse Gun Performance ------------- Evolutions (0) 0 Regions Visited (1) 200 Robots Destroyed (0) 0 Value Destroyed (0) 0 Prototype IDs (0) 0 Alien Tech Used (0) 0 Bonus (0) 0 TOTAL SCORE: 200 Bonus ------- None Cogmind --------- Core Integrity 0/250 Matter 300/300 Energy 99/100 System Corruption 2% Temperature Cool (0) Location -10/Materials Parts ------- Power (1) Propulsion (2) Utility (2) Weapon (2) Inventory (4) Light Ion Engine Aluminum Leg Assault Rifle Mining Laser Peak State ------------ Power Light Ion Engine Propulsion Aluminum Leg Aluminum Leg Utility Small Storage Unit Weapon Small Laser Assault Rifle Inventory Light Ion Engine Light Treads Light Treads Wheel Wheel Small Laser [Rating: 6] Favorites ----------- Power Light Ion Engine Engine Light Ion Engine Propulsion Aluminum Leg Treads Light Treads Leg Aluminum Leg Utility Small Storage Unit Storage Small Storage Unit Weapon Small Laser Energy Gun Small Laser Energy Cannon Beam Cannon Ballistic Gun Assault Rifle Build | -11 -10 ------- Run | Scr Mat Slots Evolved . | . . Power . | . . Propulsion . | . . Utility . | . . Weapon . | . . Parts Attached 6 | . 6 Power . | . . Engine . | . . Core . | . . Reactor . | . . Propulsion 2 | . 2 Treads 2 | . 2 Leg . | . . Wheel . | . . Hover . | . . Flight . | . . Utility . | . . Device . | . . Storage . | . . Processor . | . . Hackware . | . . Protection . | . . Artifact . | . . Weapon 4 | . 4 Energy Gun 2 | . 2 Energy Cannon 2 | . 2 Ballistic Gun . | . . Ballistic Cannon . | . . Launcher . | . . Special Weapon . | . . Impact Weapon . | . . Slashing Weapon . | . . Piercing Weapon . | . . Special Melee Weapon . | . . Unidentified Prototypes . | . . Parts Lost 7 | . 7 Power 1 | . 1 Propulsion 2 | . 2 Utility . | . . Weapon 4 | . 4 Highest Loss Streak 5 | . 5 Average Slot Usage (%) 63 | . 63 Engine 7 | . 7 Treads 8 | . 8 Leg 15 | . 15 Storage 13 | . 13 Energy Gun 7 | . 7 Energy Cannon 5 | . 5 Ballistic Gun 5 | . 5 Naked Turns 1 | . 1 Heaviest Build 13 | 10 13 Greatest Support 40 | 20 40 Greatest Overweight (x) . | . . Average Overweight (x) . | . . Largest Inventory Capacity 6 | 6 6 Average Capacity 5 | 6 5 Most Carried 6 | 6 6 Average Carried 5 | 6 5 Final Capacity 6 | 6 4 Final Carried 6 | 6 4 Class Distribution -------------------- 100% | Mutant Dominant Class ---------------- Mutant | -10/Materials Resources | -11 -10 ----------- Run | Scr Mat Matter Collected 234 | 200 34 Remotely . | . . Salvage Created . | . . Parts . | . . Haulers Intercepted . | . . Recyclers Shooed . | . . Parts Field Recycled . | . . Retrieved Matter . | . . Parts Self-Destructed . | . . Prevented . | . . Kills | -11 -10 ------- Run | Scr Mat Combat Hostiles Destroyed . | . . Classes Destroyed . | . . Best Kill Streak . | . . Combat Bots Only . | . . Max Kills in Single Turn . | . . Gunslinging . | . . Exploded . | . . Melee . | . . Uniques/NPCs Destroyed . | . . Combat | -11 -10 -------- Run | Scr Mat Damage Taken 1011 | . 1011 Core 251 | . 251 Absorbed by Shields . | . . Core Remaining (%) 100 | 100 . Volleys Fired 11 | . 11 Largest 2 | . 2 Hottest 120 | . 120 Shots Fired 22 | . 22 Gun 13 | . 13 Cannon 9 | . 9 Launcher . | . . Special . | . . Kinetic 5 | . 5 Thermal 17 | . 17 Explosive . | . . Electromagnetic . | . . Robot Hit Streak 8 | . 8 Robot Miss Streak 2 | . 2 Penetration Max . | . . Secondary Targets . | . . Shots Hit Robots 17 | . 17 Core Hits 3 | . 3 Critical Hits . | . . Critical Kills . | . . Critical Parts Destroyed . | . . Melee Attacks . | . . Impact . | . . Slashing . | . . Piercing . | . . Sneak Attacks . | . . Combat Hostiles . | . . Follow-up Attacks . | . . Damage Inflicted 321 | . 321 Guns 145 | . 145 Cannons 173 | . 173 Explosions . | . . Melee . | . . Ramming 3 | . 3 Kinetic 54 | . 54 Thermal 264 | . 264 Explosive . | . . Electromagnetic . | . . Impact . | . . Slashing . | . . Piercing . | . . Highest Corruption 2 | . 2 Average Corruption 1 | . 1 Corruption Purged . | . . Overload Shots . | . . Overflow Damage 17 | . 17 Projectiles 17 | . 17 Explosions . | . . Melee . | . . Knockbacks . | . . Impact . | . . Kinetic . | . . Secondary . | . . Self-Inflicted Damage . | . . Shots . | . . Rammed 3 | . 3 Targets Rammed 3 | . 3 Kicked . | . . Crushed . | . . Highest Temperature 182 | . 182 Average Temperature 91 | . 91 Received Heat Transfer 144 | . 144 Siege Activations . | . . Robots Corrupted . | . . Combat Hostiles . | . . Parts Fried . | . . Impact Corruptions . | . . Robots Melted . | . . Combat Hostiles . | . . Parts Melted . | . . Heat Transferred 114 | . 114 Parts Sabotaged . | . . Parts Stolen . | . . Parts Stripped . | . . Power Chain Reactions . | . . Missiles Intercepted . | . . Alert | -11 -10 ------- Run | Scr Mat Peak Influence 8 | . 8 Average Influence 1 | . 1 Maximum Alert Level . | . . Low Security (%) 100 | . . Level 1 . | . . Level 2 . | . . Level 3 . | . . Level 4 . | . . Level 5 . | . . High Security . | . . Max Security . | . . Squads Dispatched 4 | . 4 Investigation 2 | . 2 Extermination . | . . Reinforcement 2 | . 2 Assault . | . . Garrison . | . . Intercept . | . . Construction Impeded . | . . Haulers Reinforced . | . . Stealth | -11 -10 --------- Run | Scr Mat Distress Signals 1 | . 1 Communications Jammed . | . . Distress Signals . | . . Times Spotted 9 | . 9 Peak Tracking Total 10 | . 10 Tactical Retreats 3 | . 3 Traps | -11 -10 ------- Run | Scr Mat Traps Triggered . | . . Indirectly . | . . Trap Hack Attempts . | . . Triggered . | . . Disarmed . | . . Reprogrammed . | . . Reused . | . . Traps Extracted . | . . Installed . | . . Triggered . | . . Machines | -11 -10 ---------- Run | Scr Mat Machines Disabled . | . . Max in Single Turn . | . . Machines Sabotaged . | . . Garrisons Compromised . | . . Overloaded Fab Kills . | . . Fab Network Shutdowns . | . . Hacking | -11 -10 --------- Run | Scr Mat Machines Accessed 1 | . 1 Terminals 1 | . 1 Fabricators . | . . Repair Stations . | . . Recycling Units . | . . Scanalyzers . | . . Garrison Access . | . . Total Hacks 3 | . 3 Successful 2 | . 2 Failed 1 | . 1 Catastrophic . | . . Database Lockouts . | . . Manual 3 | . 3 Terminals 3 | . 3 Fabricators . | . . Repair Stations . | . . Recycling Units . | . . Scanalyzers . | . . Garrison Access . | . . Terminal Hacks 1 | . 1 Branch Access Points 1 | . 1 Fabricator Hacks . | . . Repair Station Hacks . | . . Recycling Unit Hacks . | . . Scanalyzer . | . . Garrison Access Hacks . | . . Unauthorized Hacks 2 | . 2 Terminals 1 | . 1 Track 1 | . 1 Fabricators . | . . Repair Stations . | . . Recycling Units . | . . Scanalyzers . | . . Garrison Access . | . . Data Cores Recovered . | . . Used . | . . Hacking Detections . | . . Full Trace Events . | . . Feedback Events . | . . Feedback Blocked . | . . Robot Schematics Acquired . | . . Robots Built . | . . Matter . | . . Time . | . . Total Robot Build Rating . | . . Part Schematics Acquired . | . . Parts Built . | . . Matter . | . . Time . | . . Total Part Build Rating . | . . Parts Repaired . | . . Time . | . . Parts Recycled . | . . Recycled Matter . | . . Retrieved Matter . | . . Retrieved Components . | . . Parts Scanalyzed . | . . Part Schematics Acquired . | . . Parts Damaged . | . . Bothacking | -11 -10 ------------ Run | Scr Mat Used RIF Installer . | . . Robots Hacked . | . . Non-combat . | . . Combat . | . . Robot Hacks Applied . | . . Relay Couplers Released . | . . Robots Rewired . | . . Allies Hacked . | . . Hacks Repelled . | . . Allies | -11 -10 -------- Run | Scr Mat Total Allies . | . . Largest Group . | . . Highest-Rated Group . | . . Highest-Rated Ally . | . . Total Orders . | . . Ally Attacks . | . . Total Damage . | . . Kills . | . . Allies Corrupted . | . . Allies Melted . | . . Intel | -11 -10 ------- Run | Scr Mat Robot Analysis Total . | . . Derelict Logs Recovered . | . . Drone Launches . | . . Drone Recoveries . | . . Exploration | -11 -10 ------------- Run | Scr Mat Turns Passed 249 | 10 239 Spaces Moved 148 | 9 139 Core 3 | . 3 Treads 54 | . 54 Legs 91 | 9 82 Wheels . | . . Hover . | . . Flight . | . . Fastest Speed 50 | 120 50 Average Speed 133 | 120 134 Slowest Speed 160 | 120 160 Overloaded Moves . | . . Propulsion Burnouts . | . . Robots Hopped . | . . Cave-ins Triggered . | . . Exploration Rate (%) 20 | 2 38 Regions Visited 1 Branch Regions . Pre-discovered Areas . | . . Known Exits Taken . | . . Unknown Exits Taken 1 | 1 . Scrap Searched . | . . Spaces Dug . | . . Terrain Destroyed . | . . Melee . | . . Projectile . | . . AOE . | . . Actions | -11 -10 --------- Run | Scr Mat Total 175 | 8 167 Wait 2 | . 2 Move 147 | 8 139 Hop . | . . Pick Up 3 | . 3 Fast Attach 2 | . 2 Attach 2 | . 2 Detach . | . . Swap 2 | . 2 Drop 3 | . 3 Fire 11 | . 11 Melee . | . . Ram . | . . Kick . | . . Crush 3 | . 3 Escape Stasis . | . . Rewire . | . . Trap . | . . Miscellaneous . | . . Route ------- -11/Scrapyard -10/Materials History --------- Turn | Location | Event 1 | -11/Scrapyard | Discovered new exit (range 3) 11 | -11/Scrapyard | Entered Materials 91 | -10/Materials | Identified exit to Mines 182 | -10/Materials | Lost 5 parts (1p1n3w) 215 | -10/Materials | Core integrity fell below 50% 240 | -10/Materials | Core integrity fell below 20% 249 | -10/Materials | Released all parts (2) 250 | -10/Materials | Destroyed by Lesser Abomination with EM Pulse Gun Last Messages --------------- 00155_ Slammed into Lesser Abomination. 00157_ Lesser Abomination feeds off Hungry Anomaly, taking Wheel. 00159_ Lesser Abomination feeds off Hungry Anomaly, taking Med. Battery. 00167_ Lesser Abomination feeds off Hungry Anomaly, taking Hover Unit. 00168_ K-01 Serf destroyed. 00169_ Lesser Abomination absorbs Med. Matter Pod. 00178_ Lesser Abomination absorbs Wheel. 00184_ Acquired Med. Laser. 00189_ Hungry Anomaly eats Sml. Laser. 00193_ Lesser Abomination feeds off Hungry Anomaly, taking Aluminum Leg. 00203_ Acquired Mining Laser. 00211_ Med. Laser destroyed. 00214_ Hungry Anomaly eats Med. Battery. 00214_ Lgt. Treads destroyed. 00215_ Slammed into Lesser Abomination. 00218_ Acquired 9 matter. 00249_ Released Sml. Storage Unit. 00249_ Released Lgt. Treads. 00249_ Extracted 1 energy. 00250_ Lesser Abomination absorbs Lgt. Treads. Map ----- +----------------------------------------------------+ | ?????????????????????????????????????????????????? | | ?????????????????????????????????????????????????? | | ?????????????????????????????????????????????????? | | ?????????????????????????????????????????????????? | | ?????????????????????????????????????????????????? | | ?????????????????????????????????????????#####???? | | ????????????????????????????????????????##"""##??? | | ???????????????????????????????????????##" ||"##?? | | ???????????????????????????????????????#"" ""#?? | | ???????????????????????????????????????# #?? | | ???????????????????????????????????????# > #?? | | ???????????????????????????????????????# #?? | | ???????????????????????????????????????# #?? | | ???????????????????????????????????????## ##?? | | ????????????????????????????????????????## ##### | | ???????????????????????????????????#######% # | | ?????????????????????????????????### + | | ?????????????????????????????????#"" # """ | | ?????????????????????????????????#"T """ # """ | | ?????????????????????????????????#"" """"" # """ | | ????????????????????????????######## """"" # | | ????????????????????????????# # """"" ##### | | ????????????????????????????# # """ #???? | | ????????????????????????????# # #???? | | ????????????????????##+###### # ##### | | ????????????????????# @ !! AA """ # | | ????????????? % n % A """"" % # " | | ???????????# ###### % % % """"" # " | | ????????????????????#######+######## """"" # " | | ?????????????????""?????? ???????# """ %# | | ?????????????????Y"###?? ????????# " " | | ????????????????? # ????????# + " | | ???????????# ??? # ?????????# """ # " | | ???????????# ?""" # ""?????????# """" # | | ???????????# """ # "??????????# """"" # " | | ???????????# """ # "??????????# """"" # " | | ???????????# """ #????????????# """ #! " | | ???????????+ """ #????????????# # | | ???????????# % ############## % #### | | ???????????# n "T" #? | | ??????###### #? | | ?????? % #? | | ????? [ ####################+## #? | | ????? #??????????????# [= # #? | | ???? #??????????????#% = # #? | | ?????# #??????????????# ! # #? | | ?????# #??????????????# # /? | | ?????# #??????????????# # #? | | ??????######+###### #??????????????# # #? | | ??????????????????# #??????????????######## #? | +----------------------------------------------------+ Best States ------------- Heat Dissipation 25 Energy Generation 10 Energy Capacity 125 Matter Stores 300 Matter Capacity 300 Sight Range 16 Terrain Scan Density 10 Evasion (%) 50 Recoil Reduction 2 Item Schematics ----------------- None Robot Schematics ------------------ None Fabricated ------------ Nothing Alien Tech Used ----------------- None Achievements -------------- None Challenges ------------ None Game ------ Seed ChipGodCloak Manual? 0 Play Time 00:08:24 Cumulative 126.7 hours Start 2019.10.30 @ 19:34:05 End 2019.10.30 @ 19:43:55 Sessions 4 Manual Loads 0 Difficulty Rogue Special Mode Halloween2019/Abominations Game No. 35 Rogue 35 Adventurer 0 Explorer 0 Win Type - Total 2 Types 2/0/0/0/0/0/0 Lore% 52 Gallery% 54 Achievement% 36 Wizard Run 0 Options --------- ASCII 0 Keyboard 1 Movement Vi Keybinds 0 Fullscreen 1 Font 18/SmallcapsGlow Map View 76x50 Tactical HUD 1 Map Filters NONE Filters NONE Steam 1 RUN: 9fee06e1-1415-4697-8b2b-f96357a21bcf